fUSD/lending_fUSD_20241104
["ID","MTS","AMOUNT","RATE_DAILY","PERIOD"]
[341266497,1730735486225,-500.0,0.0003726,2]
[341266498,1730735486236,-820.36,0.0003726,2]
[341266499,1730735486245,-515.02,0.0003726,2]
[341266500,1730735486255,-500.0,0.0003726,2]
[341266501,1730735486265,-500.0,0.0003726,2]
[341266502,1730735486274,-500.0,0.0003726,2]
[341266503,1730735486284,-500.0,0.0003726,2]
[341266504,1730735486295,-500.0,0.0003726,2]
[341266505,1730735486307,-500.0,0.0003726,2]
[341266506,1730735486316,-500.0,0.0003726,2]
[341266507,1730735486325,-500.0,0.0003726,2]
[341266508,1730735486334,-500.0,0.0003726,2]
[341266509,1730735486343,-500.0,0.0003726,2]
[341266510,1730735486353,-1708.91,0.0003726,2]
[341266511,1730735486363,-544.98,0.0003726,2]
[341266512,1730735486372,-500.0,0.0003726,2]
[341266513,1730735486382,-660.53,0.0003726,2]
[341266514,1730735486393,-500.0,0.0003726,2]
[341266515,1730735486403,-564.44,0.0003726,2]
[341266516,1730735486413,-850.52,0.0003726,2]
[341266517,1730735486423,-752.59,0.0003726,2]
[341266518,1730735486433,-541.19452314,0.0003726,2]
[341266519,1730735486444,-500.0,0.0003726,2]
[341266520,1730735486456,-488.68140556,0.0003726,2]
[341266521,1730735486465,-500.0,0.0003726,2]
[341266522,1730735486474,-1296.67,0.0003726,2]
[341266523,1730735486486,-559.44384338,0.0003726,2]
[341266524,1730735486495,-1584.46,0.0003726,2]
[341266525,1730735486505,-500.0,0.0003726,2]
[341266526,1730735486514,-1066.3,0.0003726,2]
[341266527,1730735486524,-500.0,0.0003726,2]
[341266528,1730735486533,-1582.17,0.0003726,2]
[341266529,1730735486543,-500.0,0.0003726,2]
[341266530,1730735486552,-500.0,0.0003726,2]
[341266531,1730735486562,-500.0,0.0003726,2]
[341266532,1730735486571,-500.0,0.0003726,2]
[341266533,1730735486580,-500.0,0.0003726,2]
[341266534,1730735486589,-290.97611387,0.0003726,2]
[341266535,1730735486598,-500.0,0.0003726,2]
[341266536,1730735486608,-500.0,0.0003726,2]
[341266537,1730735486617,-1042.76,0.0003726,2]
[341266538,1730735486627,-500.0,0.0003726,2]
[341266539,1730735486636,-151.0,0.0003726,7]
[341266540,1730735486645,-1058.38,0.0003726,2]
[341266541,1730735486655,-500.0,0.0003726,2]
[341266542,1730735486664,-505.09,0.0003726,2]
[341266543,1730735486673,-200.0,0.0003726,2]
[341266544,1730735486682,-913.46,0.0003726,2]
[341266545,1730735486692,-2146.82,0.0003726,2]
[341266546,1730735486701,-766.26,0.0003726,2]
[341266547,1730735486710,-500.0,0.0003726,2]
[341266548,1730735486720,-1191.45,0.0003726,2]
[341266549,1730735486729,-500.0,0.0003726,2]
[341266550,1730735486740,-500.0,0.0003726,2]
[341266551,1730735486749,-500.0,0.0003726,2]
[341266552,1730735486759,-609.71,0.0003726,2]
[341266553,1730735486769,-938.94,0.0003726,2]
[341266554,1730735486778,-734.64,0.0003726,2]
[341266555,1730735486787,-500.0,0.0003726,2]
[341266556,1730735486796,-300.0,0.0003726,2]
[341266557,1730735486806,-530.41,0.0003726,2]
[341266558,1730735486816,-500.0,0.0003726,2]
[341266559,1730735486825,-1127.04,0.0003726,2]
[341266560,1730735486835,-654.01,0.0003726,2]
[341266561,1730735486844,-3340.62,0.0003726,2]
[341266562,1730735486853,-500.0,0.0003726,2]
[341266563,1730735486864,-500.0,0.0003726,2]
[341266564,1730735486873,-500.0,0.0003726,2]
[341266565,1730735486882,-735.14,0.0003726,2]
[341266566,1730735486892,-10593.24,0.0003726,2]
[341266567,1730735486901,-500.0,0.0003726,2]
[341266568,1730735486911,-528.03,0.0003726,2]
[341266569,1730735486920,-1246.62,0.0003726,2]
[341266570,1730735486929,-3005.2,0.0003726,2]
[341266571,1730735486939,-500.0,0.0003726,2]
[341266572,1730735486948,-558.26,0.0003726,2]
[341266573,1730735486957,-596.23869448,0.0003726,2]
[341266574,1730735486967,-656.86,0.0003726,2]
[341266575,1730735486976,-625.73,0.0003726,2]
[341266576,1730735486987,-500.0,0.0003726,2]
[341266577,1730735486996,-1000.0,0.0003726,2]
[341266578,1730735487005,-2616.04,0.0003726,2]
[341266579,1730735487015,-500.0,0.0003726,2]
[341266580,1730735487024,-3461.86,0.0003726,2]
[341266581,1730735487034,-500.0,0.0003726,2]
[341266582,1730735487043,-500.0,0.0003726,2]
[341266583,1730735487053,-500.0,0.0003726,2]
[341266584,1730735487063,-1222.7,0.0003726,2]
[341266585,1730735487074,-514.78,0.0003726,2]
[341266586,1730735487084,-500.0,0.0003726,2]
[341266587,1730735487094,-500.0,0.0003726,2]
[341266588,1730735487104,-500.0,0.0003726,2]
[341266589,1730735487116,-500.0,0.0003726,2]
[341266590,1730735487126,-954.74,0.0003726,2]
[341266591,1730735487136,-692.32,0.0003726,2]
[341266592,1730735487145,-596.33,0.0003726,2]
[341266593,1730735487156,-500.0,0.0003726,2]
[341266594,1730735487167,-255.746573,0.0003726,7]
[341266595,1730735487179,-1916.99,0.0003726,2]
[341266596,1730735487189,-180.0,0.00037273,4]
[341266597,1730735487199,-935.12,0.000373,14]
[341266598,1730735487211,-360.0,0.00037327,4]
[341266599,1730735487221,-3515.62922459,0.0003738,30]
[341266600,1730735487231,-540.0,0.00037382,4]
[341266601,1730735487241,-720.0,0.00037437,4]
[341266602,1730735487251,-900.0,0.00037492,4]
[341266603,1730735487260,-150.0,0.000375,32]
[341266604,1730735487271,-201.1,0.000375,30]
[341266605,1730735487281,-151.0,0.00037507,120]
[341266606,1730735487291,-500.0,0.00037533,2]
[341266607,1730735487302,-519.87,0.00037533,2]
[341266608,1730735487312,-500.0,0.00037533,2]
[341266609,1730735487322,-500.0,0.00037533,2]
[341266610,1730735487332,-500.0,0.00037533,2]
[341266611,1730735487344,-500.0,0.00037533,2]
[341266612,1730735487355,-536.12445704,0.00037533,2]
[341266613,1730735487364,-500.0,0.00037533,2]
[341266614,1730735487374,-500.0,0.00037533,2]
[341266615,1730735487383,-500.0,0.00037533,2]
[341266616,1730735487393,-200.29435693,0.00037533,2]
[341266617,1730735487406,-500.0,0.00037533,2]
[341266618,1730735487415,-500.0,0.00037533,2]
[341266619,1730735487425,-500.0,0.00037533,2]
[341266620,1730735487435,-500.0,0.00037533,2]
[341266621,1730735487445,-500.0,0.00037533,2]
[341266622,1730735487563,-500.0,0.00037533,2]
[341266623,1730735487573,-520.94,0.00037533,2]
[341266624,1730735487583,-500.0,0.00037533,2]
[341266625,1730735487593,-500.0,0.00037533,2]
[341266626,1730735487602,-575.99,0.00037533,2]
[341266627,1730735487612,-500.0,0.00037533,2]
[341266628,1730735487621,-500.0,0.00037533,2]
[341266629,1730735487630,-500.0,0.00037533,2]
[341266630,1730735487640,-500.0,0.00037533,2]
[341266631,1730735487650,-500.0,0.00037533,2]
[341266632,1730735487660,-549.42,0.00037533,2]
[341266633,1730735487670,-255.746573,0.00037533,7]
[341266634,1730735487679,-500.0,0.00037534,2]
[341266635,1730735487689,-500.0,0.00037534,2]
[341266636,1730735487699,-500.0,0.00037534,2]
[341266637,1730735487708,-500.0,0.00037534,2]
[341266638,1730735487718,-678.77,0.00037534,2]
[341266639,1730735487727,-500.0,0.00037534,2]
[341266640,1730735487738,-500.0,0.00037534,2]
[341266641,1730735487747,-500.0,0.00037534,2]
[341266642,1730735487758,-500.0,0.00037534,2]
[341266643,1730735487767,-500.0,0.00037534,2]
[341266644,1730735487777,-500.0,0.00037534,2]
[341266645,1730735487787,-595.97,0.00037534,2]
[341266646,1730735487796,-500.0,0.00037534,2]
[341266647,1730735487805,-500.0,0.00037534,2]
[341266648,1730735487816,-562.46,0.00037534,2]
[341266649,1730735487825,-591.0,0.00037534,2]
[341266650,1730735487835,-845.59,0.00037534,2]
[341266651,1730735487845,-500.0,0.00037534,2]
[341266652,1730735487855,-500.0,0.00037534,2]
[341266653,1730735487865,-500.0,0.00037534,2]
[341266654,1730735487874,-500.0,0.00037534,2]
[341266655,1730735487884,-750.1,0.00037534,2]
[341266656,1730735487894,-500.0,0.00037534,2]
[341266657,1730735487903,-500.0,0.00037534,2]
[341266658,1730735487912,-500.0,0.00037534,2]
[341266659,1730735487922,-418.52582519,0.00037534,2]
[341266660,1730735487931,-500.0,0.00037534,2]
[341266661,1730735487941,-567.62,0.00037534,2]
[341266662,1730735487950,-500.0,0.00037534,2]
[341266663,1730735487960,-1971.19,0.00037534,2]
[341266664,1730735487970,-1610.78,0.00037534,2]
[341266665,1730735487980,-500.0,0.00037534,2]
[341266666,1730735487990,-1096.83,0.00037534,2]
[341266667,1730735488000,-500.0,0.00037534,2]
[341266668,1730735488009,-500.0,0.00037534,2]
[341266669,1730735488019,-500.0,0.00037534,2]
[341266670,1730735488028,-516.0,0.00037534,2]
[341266671,1730735488038,-527.03,0.00037534,2]
[341266672,1730735488048,-478.37009133,0.00037534,2]
[341266673,1730735488058,-500.0,0.00037534,2]
[341266674,1730735488067,-680.27,0.00037534,2]
[341266675,1730735488076,-511.55,0.00037534,2]
[341266676,1730735488086,-500.0,0.00037534,2]
[341266677,1730735488096,-568.1,0.00037534,2]
[341266678,1730735488105,-630.31,0.00037534,2]
[341266679,1730735488115,-879.99,0.00037534,2]
[341266680,1730735488125,-500.0,0.00037534,2]
[341266681,1730735488135,-1000.0,0.00037534,30]
[341266682,1730735488145,-860.12,0.00037534,2]
[341266683,1730735488154,-500.0,0.00037534,2]
[341266684,1730735488163,-500.0,0.00037534,2]
[341266685,1730735488173,-678.21,0.00037534,2]
[341266686,1730735488183,-777.65,0.00037534,2]
[341266687,1730735488192,-500.0,0.00037534,2]
[341266688,1730735488202,-500.0,0.00037534,2]
[341266689,1730735488212,-512.81,0.00037534,2]
[341266690,1730735488222,-1976.03,0.00037534,2]
[341266691,1730735488232,-977.14,0.00037534,2]
[341266692,1730735488241,-500.0,0.00037534,2]
[341266693,1730735488251,-500.0,0.00037534,2]
[341266694,1730735488262,-500.0,0.00037534,2]
[341266695,1730735488272,-622.99,0.00037534,2]
[341266696,1730735488281,-500.0,0.00037534,2]
[341266697,1730735488291,-712.32,0.00037534,2]
[341266698,1730735488301,-1115.68,0.00037534,2]
[341266699,1730735488320,-500.0,0.00037534,2]
[341266700,1730735488331,-500.0,0.00037534,2]
[341266701,1730735488342,-500.0,0.00037534,2]
[341266702,1730735488366,-500.0,0.00037534,2]
[341266703,1730735488391,-489.55068687,0.00037534,2]
[341266704,1730735488413,-808.98,0.00037534,2]
[341266705,1730735488435,-500.0,0.00037534,2]
[341266706,1730735488454,-1323.81,0.00037534,2]
[341266707,1730735488475,-1426.9,0.00037534,2]
[341266708,1730735488497,-500.0,0.00037534,2]
[341266709,1730735488516,-500.0,0.00037534,2]
[341266710,1730735488532,-666.03,0.00037534,2]
[341266711,1730735488549,-839.44,0.00037534,2]
[341266712,1730735488568,-500.0,0.00037534,2]
[341266713,1730735488589,-500.0,0.00037534,2]
[341266714,1730735488602,-500.0,0.00037534,2]
[341266715,1730735488620,-500.0,0.00037534,2]
[341266716,1730735488637,-500.0,0.00037534,2]
[341266717,1730735488656,-737.61,0.00037534,2]
[341266718,1730735488670,-500.0,0.00037534,2]
[341266719,1730735488689,-500.0,0.00037534,2]
[341266720,1730735488707,-500.0,0.00037534,2]
[341266721,1730735488725,-628.78,0.00037534,2]
[341266722,1730735488742,-753.23,0.00037534,2]
[341266723,1730735488759,-500.0,0.00037534,2]
[341266724,1730735488775,-500.0,0.00037534,2]
[341266725,1730735488790,-512.34,0.00037534,2]
[341266726,1730735488806,-690.94,0.00037534,2]
[341266727,1730735488823,-1122.64,0.00037534,2]
[341266728,1730735488839,-956.46,0.00037534,2]
[341266729,1730735488854,-500.0,0.00037534,2]
[341266730,1730735488871,-500.0,0.00037534,2]
[341266731,1730735488886,-262.89426142,0.00037534,2]
[341266732,1730735488902,-500.0,0.00037534,2]
[341266733,1730735488918,-1420.89,0.00037534,2]
[341266734,1730735488935,-705.19,0.00037534,2]
[341266735,1730735488951,-500.0,0.00037534,2]
[341266736,1730735488966,-767.22,0.00037534,2]
[341266737,1730735488980,-500.0,0.00037534,2]
[341266738,1730735488996,-500.0,0.00037534,2]
[341266739,1730735489011,-869.5,0.00037534,2]
[341266740,1730735489026,-712.63,0.00037534,2]
[341266741,1730735489040,-937.08,0.00037534,2]
[341266742,1730735489055,-764.15,0.00037534,2]
[341266743,1730735489070,-402.55501805,0.00037534,2]
[341266744,1730735489085,-1294.05,0.00037534,2]
[341266745,1730735489100,-532.41804497,0.00037534,2]
[341266746,1730735489114,-510.62,0.00037534,2]
[341266747,1730735489130,-524.31,0.00037534,2]
[341266748,1730735489145,-500.0,0.00037534,2]
[341266749,1730735489161,-1118.2,0.00037534,2]
[341266750,1730735489175,-552.25839055,0.00037534,2]
[341266751,1730735489191,-711.3,0.00037534,2]
[341266752,1730735489206,-500.0,0.00037534,2]
[341266753,1730735489221,-500.0,0.00037534,2]
[341266754,1730735489236,-1519.0,0.00037534,2]
[341266755,1730735489250,-500.0,0.00037534,2]
[341266756,1730735489264,-500.0,0.00037534,2]
[341266757,1730735489282,-500.0,0.00037534,2]
[341266758,1730735489298,-1126.44,0.00037534,2]
[341266759,1730735489314,-544.05,0.00037534,2]
[341266760,1730735489328,-500.0,0.00037534,2]
[341266761,1730735489343,-500.0,0.00037534,2]
[341266762,1730735489358,-500.0,0.00037534,2]
[341266763,1730735489372,-500.0,0.00037534,2]
[341266764,1730735489387,-1288.14,0.00037534,2]
[341266765,1730735489404,-543.83,0.00037534,2]
[341266766,1730735489419,-636.36,0.00037534,2]
[341266767,1730735489433,-1218.15,0.00037534,2]
[341266768,1730735489448,-500.0,0.00037534,2]
[341266769,1730735489464,-1259.81,0.00037534,2]
[341266770,1730735489480,-1651.88,0.00037534,2]
[341266771,1730735489496,-319.99,0.00037534,2]
[341266772,1730735489511,-500.0,0.00037534,2]
[341266773,1730735489525,-500.0,0.00037534,2]
[341266774,1730735489539,-500.0,0.00037534,2]
[341266775,1730735489554,-1360.92,0.00037534,2]
[341266776,1730735489568,-500.0,0.00037534,2]
[341266777,1730735489583,-912.89,0.00037534,2]
[341266778,1730735489597,-450.18199062,0.00037534,2]
[341266779,1730735489612,-500.0,0.00037534,2]
[341266780,1730735489627,-500.0,0.00037534,2]
[341266781,1730735489644,-500.0,0.00037534,2]
[341266782,1730735489658,-719.39,0.00037534,2]
[341266783,1730735489672,-500.0,0.00037534,2]
[341266784,1730735489688,-704.43,0.00037534,2]
[341266785,1730735489860,-669.63,0.00037534,2]
[341266786,1730735489879,-625.89077627,0.00037534,2]
[341266787,1730735489892,-500.0,0.00037534,2]
[341266788,1730735489902,-529.69,0.00037534,2]
[341266789,1730735489911,-500.0,0.00037534,2]
[341266790,1730735489921,-500.0,0.00037534,2]
[341266791,1730735489931,-300.60909724,0.00037534,2]
[341266792,1730735489941,-500.0,0.00037534,2]
[341266793,1730735489950,-210.50870396,0.00037534,2]
[341266794,1730735489961,-500.0,0.00037534,2]
[341266795,1730735489970,-1802.68,0.00037534,2]
[341266796,1730735489980,-500.0,0.00037534,2]
[341266797,1730735489993,-500.0,0.00037534,2]
[341266798,1730735490003,-500.0,0.00037534,2]
[341266799,1730735490013,-500.0,0.00037534,2]
[341266800,1730735490023,-500.0,0.00037534,2]
[341266801,1730735490032,-687.5,0.00037534,2]
[341266802,1730735490043,-1321.04,0.00037534,2]
[341266803,1730735490053,-909.72,0.00037534,2]
[341266804,1730735490062,-500.0,0.00037534,2]
[341266805,1730735490072,-500.0,0.00037534,2]
[341266806,1730735490082,-500.0,0.00037534,2]
[341266807,1730735490091,-879.57,0.00037534,2]
[341266808,1730735490101,-500.0,0.00037534,2]
[341266809,1730735490111,-571.76,0.00037534,2]
[341266810,1730735490120,-500.0,0.00037534,2]
[341266811,1730735490130,-500.0,0.00037534,2]
[341266812,1730735490140,-534.69,0.00037534,2]
[341266813,1730735490149,-500.0,0.00037534,2]
[341266814,1730735490159,-500.0,0.00037534,2]
[341266815,1730735490169,-939.96,0.00037534,2]
[341266816,1730735490179,-500.0,0.00037534,2]
[341266817,1730735490188,-980.66,0.00037534,2]
[341266818,1730735490200,-500.0,0.00037534,2]
[341266819,1730735490209,-500.0,0.00037534,2]
[341266820,1730735490219,-546.11,0.00037534,2]
[341266821,1730735490228,-500.0,0.00037534,2]
[341266822,1730735490238,-511.22,0.00037534,2]
[341266823,1730735490248,-500.0,0.00037534,2]
[341266824,1730735490258,-500.0,0.00037534,2]
[341266825,1730735490268,-505.5,0.00037534,2]
[341266826,1730735490277,-500.0,0.00037534,2]
[341266827,1730735490288,-500.0,0.00037534,2]
[341266828,1730735490298,-984.46,0.00037534,2]
[341266829,1730735490308,-614.73,0.00037534,2]
[341266830,1730735490317,-500.0,0.00037534,2]
[341266831,1730735490327,-602.48,0.00037534,2]
[341266832,1730735490337,-500.0,0.00037534,2]
[341266833,1730735490346,-988.32,0.00037534,2]
[341266834,1730735490356,-500.0,0.00037534,2]
[341266835,1730735490366,-500.0,0.00037534,2]
[341266836,1730735490376,-500.0,0.00037534,2]
[341266837,1730735490385,-631.52,0.00037534,2]
[341266838,1730735490398,-553.74,0.00037534,2]
[341266839,1730735490411,-988.27,0.00037534,2]
[341266840,1730735490420,-769.98,0.00037534,2]
[341266841,1730735490430,-500.0,0.00037534,2]
[341266842,1730735490440,-500.0,0.00037534,2]
[341266843,1730735490449,-500.0,0.00037534,2]
[341266844,1730735490459,-1956.97,0.00037534,2]
[341266845,1730735490469,-500.0,0.00037534,2]
[341266846,1730735490478,-500.0,0.00037534,2]
[341266847,1730735490489,-500.0,0.00037534,2]
[341266848,1730735490498,-250.0,0.00037534,2]
[341266849,1730735490508,-566.39,0.00037534,2]
[341266850,1730735490517,-1694.4,0.00037534,2]
[341266851,1730735490527,-500.0,0.00037534,2]
[341266852,1730735490537,-500.0,0.00037534,2]
[341266853,1730735490547,-500.0,0.00037534,2]
[341266854,1730735490556,-500.0,0.00037534,2]
[341266855,1730735490566,-515.3,0.00037534,2]
[341266856,1730735490575,-500.0,0.00037534,2]
[341266857,1730735490585,-500.0,0.00037534,2]
[341266858,1730735490594,-879.85,0.00037534,2]
[341266859,1730735490605,-652.97,0.00037534,2]
[341266860,1730735490615,-689.03,0.00037534,2]
[341266861,1730735490625,-500.0,0.00037534,2]
[341266862,1730735490635,-500.0,0.00037534,2]
[341266863,1730735490644,-500.0,0.00037534,2]
[341266864,1730735490654,-777.65,0.00037534,2]
[341266865,1730735490663,-500.0,0.00037534,2]
[341266866,1730735490673,-500.0,0.00037534,2]
[341266867,1730735490683,-500.0,0.00037534,2]
[341266868,1730735490693,-500.0,0.00037534,2]
[341266869,1730735490702,-609.2,0.00037534,2]
[341266870,1730735490712,-1141.77,0.00037534,2]
[341266871,1730735490722,-815.25,0.00037534,2]
[341266872,1730735490731,-500.0,0.00037534,2]
[341266873,1730735490741,-1247.49,0.00037534,2]
[341266874,1730735490751,-611.47,0.00037534,2]
[341266875,1730735490760,-500.0,0.00037534,2]
[341266876,1730735490770,-500.0,0.00037534,2]
[341266877,1730735490780,-877.23,0.00037534,2]
[341266878,1730735490789,-1538.63,0.00037534,2]
[341266879,1730735490799,-1051.45,0.00037534,2]
[341266880,1730735490809,-500.0,0.00037534,2]
[341266881,1730735490819,-500.0,0.00037534,2]
[341266882,1730735490828,-4150.77,0.00037534,2]
[341266883,1730735490838,-500.0,0.00037534,2]
[341266884,1730735490848,-745.46,0.00037534,2]
[341266885,1730735490858,-1876.8,0.00037534,2]
[341266886,1730735490868,-1151.0,0.00037534,2]
[341266887,1730735490877,-1770.42,0.00037534,2]
[341266888,1730735490887,-510.09,0.00037534,2]
[341266889,1730735490897,-500.0,0.00037534,2]
[341266890,1730735490908,-522.29,0.00037534,2]
[341266891,1730735490918,-958.22,0.00037534,2]
[341266892,1730735490930,-1127.16,0.00037534,2]
[341266893,1730735490940,-500.0,0.00037534,2]
[341266894,1730735490950,-865.69,0.00037534,2]
[341266895,1730735490961,-500.0,0.00037534,2]
[341266896,1730735490971,-500.0,0.00037534,2]
[341266897,1730735490983,-1128.13,0.00037534,2]
[341266898,1730735490994,-500.0,0.00037534,2]
[341266899,1730735491004,-1045.13,0.00037534,2]
[341266900,1730735491015,-531.53,0.00037534,2]
[341266901,1730735491024,-500.0,0.00037534,2]
[341266902,1730735491034,-2026.72,0.00037534,2]
[341266903,1730735491043,-1098.81,0.00037534,2]
[341266904,1730735491053,-250.0,0.00037534,2]
[341266905,1730735491062,-520.4,0.00037534,2]
[341266906,1730735491072,-500.0,0.00037534,2]
[341266907,1730735491081,-500.0,0.00037534,2]
[341266908,1730735491091,-519.04,0.00037534,2]
[341266909,1730735491100,-531.18552843,0.00037534,2]
[341266910,1730735491110,-500.0,0.00037534,2]
[341266911,1730735491119,-500.0,0.00037534,2]
[341266912,1730735491129,-627.52,0.00037534,2]
[341266913,1730735491138,-587.36,0.00037534,2]
[341266914,1730735491147,-500.0,0.00037534,2]
[341266915,1730735491157,-500.0,0.00037534,2]
[341266916,1730735491166,-500.0,0.00037534,2]
[341266917,1730735491176,-2121.93,0.00037534,2]
[341266918,1730735491188,-500.0,0.00037534,2]
[341266919,1730735491198,-582.71,0.00037534,2]
[341266920,1730735491207,-500.0,0.00037534,2]
[341266921,1730735491216,-1427.63,0.00037534,2]
[341266922,1730735491226,-791.14,0.00037534,2]
[341266923,1730735491237,-1116.56,0.00037534,2]
[341266924,1730735491247,-500.0,0.00037534,2]
[341266925,1730735491256,-2018.13,0.00037534,2]
[341266926,1730735491267,-1093.28,0.00037534,2]
[341266927,1730735491277,-500.0,0.00037534,2]
[341266928,1730735491286,-500.0,0.00037534,2]
[341266929,1730735491296,-1687.58,0.00037534,2]
[341266930,1730735491305,-500.0,0.00037534,2]
[341266931,1730735491315,-1104.45,0.00037534,2]
[341266932,1730735491324,-500.0,0.00037534,2]
[341266933,1730735491334,-911.86,0.00037534,2]
[341266934,1730735491343,-500.0,0.00037534,2]
[341266935,1730735491353,-835.19,0.00037534,2]
[341266936,1730735491363,-500.0,0.00037534,2]
[341266937,1730735491373,-878.68,0.00037534,2]
[341266938,1730735491385,-1098.84,0.00037534,2]
[341266939,1730735491398,-500.0,0.00037534,2]
[341266940,1730735491408,-1310.74,0.00037534,2]
[341266941,1730735491418,-2183.79,0.00037534,2]
[341266942,1730735491427,-500.0,0.00037534,2]
[341266943,1730735491436,-820.36,0.00037534,2]
[341266944,1730735491447,-515.02,0.00037534,2]
[341266945,1730735491456,-500.0,0.00037534,2]
[341266946,1730735491466,-500.0,0.00037534,2]
[341266947,1730735491477,-500.0,0.00037534,2]
[341266948,1730735491486,-500.0,0.00037534,2]
[341266949,1730735491496,-500.0,0.00037534,2]
[341266950,1730735491505,-500.0,0.00037534,2]
[341266951,1730735491515,-500.0,0.00037534,2]
[341266952,1730735491524,-500.0,0.00037534,2]
[341266953,1730735491533,-500.0,0.00037534,2]
[341266954,1730735491542,-500.0,0.00037534,2]
[341266955,1730735491551,-1708.91,0.00037534,2]
[341266956,1730735491561,-544.98,0.00037534,2]
[341266957,1730735491570,-500.0,0.00037534,2]
[341266958,1730735491579,-660.53,0.00037534,2]
[341266959,1730735491589,-500.0,0.00037534,2]
[341266960,1730735491598,-564.44,0.00037534,2]
[341266961,1730735491607,-850.52,0.00037534,2]
[341266962,1730735491617,-752.59,0.00037534,2]
[341266963,1730735491626,-500.0,0.00037534,2]
[341266964,1730735491635,-1296.67,0.00037534,2]
[341266965,1730735491645,-500.0,0.00037534,2]
[341266966,1730735491654,-1584.46,0.00037534,2]
[341266967,1730735491663,-500.0,0.00037534,2]
[341266968,1730735491672,-1066.3,0.00037534,2]
[341266969,1730735491683,-500.0,0.00037534,2]
[341266970,1730735491692,-1582.17,0.00037534,2]
[341266971,1730735491702,-500.0,0.00037534,2]
[341266972,1730735491711,-500.0,0.00037534,2]
[341266973,1730735491720,-500.0,0.00037534,2]
[341266974,1730735491729,-342.5131347,0.00037534,2]
[341266975,1730735491738,-500.0,0.00037534,2]
[341266976,1730735491748,-500.0,0.00037534,2]
[341266977,1730735491758,-500.0,0.00037534,2]
[341266978,1730735491767,-1042.76,0.00037534,2]
[341266979,1730735491777,-291.55072387,0.00037534,2]
[341266980,1730735491786,-1058.38,0.00037534,2]
[341266981,1730735491795,-500.0,0.00037534,2]
[341266982,1730735491805,-505.09,0.00037534,2]
[341266983,1730735491814,-200.0,0.00037534,2]
[341266984,1730735491824,-913.46,0.00037534,2]
[341266985,1730735491833,-2146.82,0.00037534,2]
[341266986,1730735491843,-766.26,0.00037534,2]
[341266987,1730735491852,-1191.45,0.00037534,2]
[341266988,1730735491861,-500.0,0.00037534,2]
[341266989,1730735491870,-500.0,0.00037534,2]
[341266990,1730735491879,-500.0,0.00037534,2]
[341266991,1730735491889,-500.0,0.00037534,2]
[341266992,1730735491898,-609.71,0.00037534,2]
[341266993,1730735491907,-938.94,0.00037534,2]
[341266994,1730735491918,-734.64,0.00037534,2]
[341266995,1730735491928,-500.0,0.00037534,2]
[341266996,1730735491938,-300.0,0.00037534,2]